bitfinex/quotes_ETHUSD_20240731
["timestamp","ask_amount","ask_price","bid_price","bid_amount"]
[1722456763712,0.307194,3255.2,3254.0,3.07311]
[1722456763908,3.07182,3255.4,3254.1,3.13444121]
[1722456764074,3.07192,3255.3,3254.1,0.06145121]
[1722456764272,3.07176,3255.5,3254.1,3.13448121]
[1722456764467,3.07191,3255.3,3254.1,0.06145121]
[1722456764673,3.07191,3255.3,3254.1,3.75527233]
[1722456764674,0.614367,3255.3,3254.1,3.75527233]
[1722456764902,3.07229,3254.9,3254.1,0.62078112]
[1722456765113,0.614367,3255.3,3253.7,2.3647]
[1722456765114,3.0,3254.8,3253.7,2.3647]
[1722456765273,3.07218,3255.1,3253.4,0.02]
[1722456765467,3.07281,3254.4,3253.4,0.02]
[1722456765709,3.0,3254.3,3253.4,3.09369]
[1722456765912,3.0,3254.7,3253.7,3.07341]
[1722456766084,3.0723,3254.9,3253.4,3.09366]
[1722456766085,3.0723,3254.9,3253.5,3.07357]
[1722456766304,3.07248,3254.7,3253.4,0.02]
[1722456766613,3.607248,3254.6,3253.4,3.403071]
[1722456766811,6.679818,3254.6,3253.4,0.329371]
[1722456767022,3.607248,3254.6,3253.6,3.0735]
[1722456767199,0.307218,3255.0,3253.7,3.07333]
[1722456767200,3.0,3254.8,3253.7,3.07333]
[1722456767403,3.0,3254.8,3253.8,0.06146118]
[1722456767598,0.307218,3255.0,3254.2,3.07287]
[1722456767789,3.686287,3255.3,3254.0,0.06145117]
[1722456767970,3.07201,3255.2,3254.0,0.06145117]
[1722456768173,5.40927,3255.8,3254.0,0.06145117]
[1722456768403,3.07129,3256.0,3254.5,2.2885]
[1722456768588,3.07091,3256.4,3254.5,2.2885]
[1722456768773,3.07164,3255.6,3254.6,0.536118]
[1722456768985,3.605921,3256.3,3254.5,2.2885]
[1722456769326,3.07191,3255.3,3254.5,2.2885]
[1722456769492,3.07178,3255.5,3254.5,2.2885]
[1722456769899,3.605981,3256.3,3254.5,2.2885]
[1722456769900,3.07125,3256.0,3254.5,5.42257563]
[1722456770118,3.07119,3256.1,3254.5,5.42252563]
[1722456770330,3.07137,3255.9,3254.6,0.54225256]
[1722456770532,3.0714,3255.9,3254.6,3.07251]
[1722456770703,3.0714,3255.9,3254.5,2.2885]
[1722456771096,3.07131,3256.0,3254.6,3.07257]
[1722456771292,6.07135,3255.9,3254.5,5.36111]
[1722456771498,6.07139,3255.9,3254.5,2.2885]
[1722456771694,0.607139,3255.8,3254.5,5.897268]
[1722456771902,0.607139,3255.8,3254.7,3.07239]
[1722456772141,6.07113,3256.2,3254.9,3.07222]
[1722456772429,3.07172,3255.5,3254.5,2.824628]
[1722456772633,3.0,3256.2,3254.5,2.2885]
[1722456772991,3.07169,3255.6,3254.5,2.2885]
[1722456773344,3.07188,3255.4,3254.5,2.2885]
[1722456773499,3.0,3255.5,3254.5,2.2885]
[1722456773698,0.607167,3255.4,3254.5,2.2885]
[1722456774094,0.607167,3255.4,3254.6,0.06144537]
[1722456774335,0.607167,3255.4,3254.5,2.2885]
[1722456774699,3.0,3255.7,3254.6,0.06144536]
[1722456775258,6.07155,3255.7,3254.5,2.2885]
[1722456775403,3.0,3255.7,3254.5,2.2885]
[1722456775603,3.07217,3255.1,3254.0,2.3147]
[1722456775901,3.07191,3255.3,3254.0,5.38778]
[1722456776146,0.607191,3255.2,3254.1,0.538778]
[1722456776319,3.607191,3255.2,3254.1,0.538778]
[1722456776523,3.07216,3255.1,3254.1,0.538778]
[1722456776702,3.607191,3255.2,3254.0,2.3147]
[1722456776900,0.607191,3255.2,3254.0,2.3147]
[1722456777103,0.607191,3255.2,3254.0,5.38782]
[1722456777104,3.607191,3255.2,3254.0,5.38782]
[1722456777336,6.679211,3255.2,3254.0,2.3147]
[1722456777547,3.07212,3255.1,3254.0,2.3147]
[1722456777756,3.6679311,3255.0,3254.0,2.3147]
[1722456778124,3.07233,3254.9,3254.0,2.3147]
[1722456778325,3.07255,3254.7,3254.0,2.3147]
[1722456779563,3.07263,3254.6,3254.0,2.3147]
[1722456779960,3.07293,3254.3,3253.5,2.3051]
[1722456780169,3.07295,3254.2,3253.5,2.3051]
[1722456780386,0.614588,3254.2,3253.5,2.3051]
[1722456780530,3.0,3254.2,3253.5,2.3051]
[1722456780855,3.0,3254.3,3253.5,2.3051]
[1722456781228,6.07272,3254.5,3253.5,2.3051]
[1722456781551,3.0,3254.5,3253.5,2.3051]
[1722456781850,3.22395659,3254.9,3253.5,2.3051]
[1722456781851,3.0,3254.6,3253.5,2.3051]
[1722456782053,0.15554124,3255.1,3253.6,0.539874]
[1722456782054,6.07238,3254.8,3253.6,0.539874]
[1722456782263,3.07277,3254.4,3253.5,2.3051]
[1722456782413,3.07295,3254.2,3253.5,2.3051]
[1722456782618,3.07277,3254.4,3253.5,2.3051]
[1722456783056,3.07288,3254.3,3253.5,2.3051]
[1722456783263,3.0,3254.8,3253.5,2.3051]
[1722456783461,3.07274,3254.5,3253.5,2.53761]
[1722456783624,3.0729,3254.3,3253.5,2.3051]
[1722456783823,3.07274,3254.5,3253.5,2.3051]
[1722456784064,3.07292,3254.3,3253.5,2.3051]
[1722456784363,3.07305,3254.1,3253.5,2.3051]
[1722456784839,3.0729,3254.3,3253.5,2.3051]
[1722456785154,0.30729,3254.2,3253.5,2.3051]
[1722456785321,3.0,3254.5,3253.5,2.3051]
[1722456785519,3.07292,3254.3,3253.5,2.3051]
[1722456785825,3.07312,3254.1,3253.5,2.3051]
[1722456786024,3.0,3254.2,3253.5,2.3051]
[1722456787371,3.0,3254.3,3253.5,2.3051]
[1722456787536,3.07291,3254.3,3253.5,2.53761]
[1722456787740,3.0,3254.2,3253.5,2.53761]
[1722456789159,6.07301,3254.2,3253.5,2.3051]
[1722456789357,3.07305,3254.1,3253.5,2.3051]
[1722456789667,6.14617,3254.1,3253.5,2.3051]
[1722456789874,3.07305,3254.1,3253.5,2.3051]
[1722456790868,3.0,3254.2,3253.5,2.3051]
[1722456791174,3.07311,3254.1,3253.5,2.3051]
[1722456791575,6.680319,3254.2,3253.5,2.3051]
[1722456792096,6.680319,3254.2,3253.6,0.06146345]
[1722456792097,3.0,3254.2,3253.6,0.06146345]
[1722456792301,3.0,3254.4,3253.5,2.3051]
[1722456793081,3.07149,3255.8,3253.5,2.3051]
[1722456793331,3.07176,3255.5,3254.0,3.07312]
[1722456793531,2.4441,3256.0,3254.1,5.71647121]
[1722456793532,3.378996,3255.4,3254.1,5.71647121]
[1722456793635,0.307176,3255.4,3254.1,5.71648121]
[1722456793854,3.07154,3255.7,3254.4,3.07275]
[1722456794067,3.07136,3255.9,3254.5,0.06143966]
[1722456794271,3.07185,3255.4,3254.1,2.582012]
[1722456794434,3.07203,3255.2,3254.1,2.582012]
[1722456794631,3.0716,3255.7,3254.1,2.582012]
[1722456794875,3.07208,3255.2,3254.1,2.582012]
[1722456795184,3.07178,3255.5,3254.2,3.07295]
[1722456795363,0.30716,3255.6,3254.1,2.582012]
[1722456795541,3.07206,3255.2,3254.1,2.582012]
[1722456796281,3.07183,3255.4,3254.1,5.655042]
[1722456796435,2.98,3255.3,3254.1,5.655042]
[1722456796835,3.07165,3255.6,3254.1,5.655042]
[1722456796836,3.07182,3255.4,3254.1,5.655042]
[1722456797435,3.07154,3255.7,3254.1,5.655042]
[1722456797638,3.07163,3255.6,3254.2,3.6383842]
[1722456797896,3.07145,3255.8,3254.2,3.6383942]
[1722456798055,3.07169,3255.6,3254.2,3.6383942]
[1722456798437,3.07145,3255.8,3254.3,3.07284]
[1722456798638,6.07154,3255.7,3254.4,3.0727]
[1722456798965,2.3061,3255.6,3254.2,0.5655042]
[1722456799279,3.07195,3255.3,3254.1,2.2747]
[1722456799433,3.0,3255.2,3254.1,2.2747]
[1722456799849,3.07172,3255.5,3254.1,2.2747]
[1722456799850,3.0,3255.4,3254.1,2.2747]
[1722456800047,6.678992,3255.4,3254.2,0.534783]
[1722456800356,3.0,3255.4,3254.2,3.607713]
[1722456800536,3.0,3255.4,3254.3,0.06144376]
[1722456800734,0.15575394,3256.2,3254.2,0.534783]
[1722456800735,3.07154,3255.7,3254.2,3.07289]
[1722456800973,3.07172,3255.5,3254.1,2.2747]
[1722456801284,3.07201,3255.2,3254.1,2.2747]
[1722456801476,6.0719,3255.4,3254.2,0.22747]
[1722456801477,3.0719,3255.4,3254.2,0.22747]
[1722456801681,3.0,3255.3,3254.2,0.22747]
[1722456801885,3.0,3255.3,3254.3,0.0614421]
[1722456802088,0.88919929,3257.5,3254.6,2.2601]
[1722456802089,3.07116,3256.1,3254.6,2.2601]
[1722456802271,3.07116,3256.1,3254.7,3.50984048]
[1722456802472,3.07097,3256.3,3254.8,0.0614299]
[1722456802677,3.07097,3256.3,3254.9,3.07223]
[1722456802993,3.07097,3256.3,3255.0,0.06142954]
[1722456802994,3.07112,3256.2,3255.0,0.06142954]
[1722456803198,3.07097,3256.3,3255.0,0.06142954]
[1722456803486,3.07097,3256.3,3255.1,2.3719]
[1722456803647,3.07097,3256.3,3255.2,0.06142615]
[1722456803844,2.48040657,3257.1,3255.1,2.3719]
[1722456804087,3.07159,3255.7,3255.1,2.3719]
[1722456804422,3.07178,3255.5,3254.3,2.3719]
[1722456804690,3.07117,3256.1,3254.4,0.259937]
[1722456804691,3.0717,3255.6,3254.4,0.259937]
[1722456805187,3.07203,3255.2,3254.4,0.259937]
[1722456805401,3.07189,3255.4,3254.3,2.3719]
[1722456805692,3.07209,3255.2,3254.3,2.3719]
[1722456805916,3.07219,3255.0,3254.3,2.3719]
[1722456806063,3.0,3255.3,3253.8,2.2901]
[1722456806251,3.07263,3254.6,3253.8,2.2901]
[1722456806448,3.07276,3254.4,3253.8,2.2901]
[1722456806670,3.07276,3254.4,3253.1,2.2901]
[1722456806967,3.07301,3254.2,3253.1,2.2901]
[1722456807318,3.07304,3254.1,3253.1,2.2901]
[1722456807652,3.07288,3254.3,3253.1,2.2901]
[1722456807864,3.07295,3254.2,3253.2,0.22901]
[1722456808048,3.307263,3254.5,3253.1,2.2901]
[1722456808252,3.07319,3254.0,3253.1,2.2901]
[1722456808481,3.07348,3253.7,3253.1,2.2901]
[1722456809465,6.14654,3253.9,3253.1,2.2901]
[1722456809668,6.07333,3253.8,3253.1,2.2901]
[1722456809991,3.0,3253.8,3253.1,2.2901]
[1722456810175,3.07323,3253.9,3253.1,2.2901]
[1722456810383,3.0,3253.8,3253.1,2.2901]
[1722456810565,0.46159766,3254.5,3253.2,0.06147068]
[1722456810890,0.46159766,3254.5,3253.1,2.2901]
[1722456811086,0.15433466,3254.5,3253.1,2.2901]
[1722456811393,3.07267,3254.5,3253.2,0.0614633]
[1722456811615,3.07209,3255.2,3253.3,0.06145895]
[1722456811616,3.07232,3254.9,3253.3,0.06145895]
[1722456811799,3.07239,3254.8,3253.4,3.07365]
[1722456811966,3.07239,3254.8,3253.5,0.06145892]
[1722456812162,3.686951,3254.7,3253.6,0.31351089]
[1722456812459,3.686951,3254.7,3253.7,0.06145892]
[1722456812666,3.07249,3254.7,3253.6,2.3436]
[1722456812901,3.0,3254.6,3253.6,2.3436]
[1722456813208,3.07272,3254.5,3253.6,2.3436]
[1722456813364,3.07272,3254.5,3252.5,3.07449]
[1722456813365,3.07325,3253.9,3252.5,3.07449]
[1722456813558,3.07325,3253.9,3252.6,2.3436]
[1722456813801,3.0,3253.8,3252.7,0.541809]
[1722456814113,0.614633,3253.9,3252.8,0.06147072]
[1722456814114,3.0,3253.9,3252.8,0.06147072]
[1722456814290,15.24188,3255.4,3252.6,2.3436]
[1722456814291,3.0,3254.0,3252.6,2.3436]
[1722456814606,3.0732,3254.0,3252.6,5.418]
[1722456814767,3.07234,3254.9,3252.3,3.489]
[1722456814768,3.0,3253.9,3252.9,3.0741]
[1722456814964,3.07282,3254.4,3253.0,0.54005]
[1722456814965,3.0,3254.3,3253.0,0.54005]
[1722456815170,3.0,3254.3,3253.1,0.06146242]
[1722456815801,3.0,3254.3,3253.1,3.13543242]
[1722456816007,3.0,3254.3,3253.1,3.07397]
[1722456816364,3.0,3254.3,3253.0,0.54005]
[1722456816567,3.07295,3254.2,3253.1,0.361414]
[1722456816765,3.0,3254.1,3252.8,2.3264]
[1722456816988,3.0731,3254.1,3252.8,2.3264]
[1722456817188,3.0,3254.0,3252.9,3.13564021]
[1722456817396,3.0,3254.3,3252.8,2.3264]
[1722456817611,3.07287,3254.3,3252.8,2.3264]
[1722456817823,3.07372,3253.4,3252.8,2.3264]
[1722456818104,3.0741,3253.0,3252.4,2.2883]
[1722456818437,3.07425,3252.9,3252.4,2.2883]
[1722456818705,3.07405,3253.1,3252.4,2.2883]
[1722456818938,3.0,3253.0,3252.4,2.2883]
[1722456819269,3.07423,3252.9,3252.4,2.2883]
[1722456819865,3.0,3253.0,3252.4,2.2883]
[1722456820264,3.0,3253.2,3252.4,2.2883]
[1722456820482,3.07346,3253.7,3252.4,2.2883]
[1722456820483,0.15044056,3253.5,3252.5,0.06148763]
[1722456820707,3.0,3253.6,3252.5,0.06148763]
[1722456821228,10.69407601,3254.1,3252.5,0.06148763]
[1722456821395,3.07339,3253.8,3252.5,3.07455]
[1722456821608,3.07339,3253.8,3252.6,0.559168]
[1722456821923,3.07331,3253.9,3252.4,2.51713]
[1722456822137,3.07331,3253.9,3252.5,3.13597081]
[1722456822424,3.07334,3253.8,3252.4,2.51713]
[1722456822640,3.0731,3254.1,3252.4,2.51713]
[1722456822855,3.0,3254.0,3252.4,2.51713]
[1722456823129,3.63956999,3254.0,3252.5,3.326173]
[1722456823682,3.63956999,3254.0,3252.6,3.07445]
[1722456823883,0.63956999,3254.0,3252.8,3.07421]
[1722456824080,0.63956999,3254.0,3252.6,3.0744]
[1722456824328,0.63956999,3254.0,3252.7,3.7144123]
[1722456824683,10.54221,3255.0,3253.4,2.2875]
[1722456824978,5.50826,3255.3,3253.5,0.06145878]
[1722456824979,2.4363,3255.3,3253.5,0.06145878]
[1722456825212,3.07244,3254.8,3253.5,0.06145878]
[1722456825399,3.07251,3254.7,3253.5,0.06145878]
[1722456825721,0.614495,3254.7,3253.6,0.23489588]
[1722456825925,3.686975,3254.7,3253.7,0.06146008]
[1722456826294,6.07265,3254.6,3253.7,0.06146008]
[1722456826493,3.07279,3254.4,3253.4,2.2875]
[1722456826690,3.0,3254.3,3253.4,2.2875]
[1722456827121,6.680159,3254.3,3253.4,2.2875]
[1722456827282,3.607279,3254.3,3253.4,2.2875]
[1722456827483,3.687025,3254.7,3253.5,0.06146577]
[1722456827823,3.0,3254.6,3253.5,0.06146577]
[1722456828318,3.07268,3254.5,3253.5,0.06146577]
[1722456828622,3.0,3254.4,3253.5,0.06146577]
[1722456828812,3.0,3254.4,3253.5,0.29636235]
[1722456829196,3.0,3254.5,3253.5,0.29636235]
[1722456829391,3.0,3254.5,3253.5,0.23489658]
[1722456829592,3.0,3254.5,3253.6,0.06146031]
[1722456829787,3.0,3254.7,3253.8,3.07332]
[1722456830014,3.07229,3254.9,3253.9,0.36878664]
[1722456830185,3.0,3254.8,3253.9,0.06145464]
[1722456830613,3.0723,3254.9,3253.9,0.06145464]
[1722456830819,3.0,3254.8,3253.9,0.06145464]
[1722456831398,6.07241,3254.8,3253.5,0.23489658]
[1722456832484,3.07248,3254.7,3253.5,0.23489658]
[1722456832690,6.07259,3254.6,3253.4,2.2875]
[1722456832924,3.07259,3254.6,3253.4,2.2875]
[1722456833099,3.0,3254.5,3253.4,2.2875]
[1722456833434,6.07268,3254.5,3253.4,2.2875]
[1722456833601,3.0,3254.5,3253.5,0.06146322]
[1722456833928,3.0,3254.5,3253.4,2.2875]
[1722456833929,0.607259,3254.4,3253.4,2.2875]
[1722456834147,0.55,3254.3,3253.4,2.2875]
[1722456834434,3.07286,3254.3,3253.4,2.2875]
[1722456834743,6.07249,3254.7,3253.4,2.2875]
[1722456834888,3.0,3254.7,3253.5,0.06146318]
[1722456835097,6.07253,3254.7,3253.4,2.2875]
[1722456835294,3.914486,3254.7,3253.5,0.22875]
[1722456836144,6.0723,3254.9,3253.5,0.22875]
[1722456836297,3.07239,3254.8,3253.5,0.22875]
[1722456836646,3.0,3254.7,3253.5,0.22875]
[1722456837043,3.15306746,3254.9,3253.6,0.06145683]
[1722456837243,0.31530675,3254.9,3253.7,0.06145476]
[1722456837399,6.07243,3254.8,3253.6,0.25777068]
[1722456837599,3.07328,3253.9,3252.9,2.3219]
[1722456837836,3.0,3253.8,3253.0,0.06147218]
[1722456838056,3.0,3253.8,3252.9,2.3219]
[1722456838057,3.07314,3254.0,3253.5,0.03]
[1722456838255,3.307314,3253.9,3253.5,0.03]
[1722456838713,3.0726,3254.6,3253.5,0.03]
[1722456838914,3.0,3254.2,3253.6,2.456]
[1722456839181,3.07249,3254.7,3253.6,2.456]
[1722456839357,3.0,3254.6,3253.6,2.456]
[1722456839716,3.54208015,3254.9,3253.6,2.456]
[1722456839717,0.1544134,3254.9,3253.6,2.456]
[1722456840066,5.50826,3255.3,3253.7,0.31005705]
[1722456840247,3.07216,3255.1,3253.8,0.06145159]
[1722456840430,3.07229,3254.9,3253.8,0.06145159]
[1722456840630,3.07216,3255.1,3253.8,0.06145159]
[1722456841154,3.07227,3255.0,3253.7,0.2486]
[1722456841323,0.15145037,3255.3,3253.8,0.33191478]
[1722456841324,3.0,3254.9,3253.8,0.33191478]
[1722456841519,3.0,3255.1,3253.8,0.27046]
[1722456841842,6.07211,3255.1,3253.9,0.0614548]
[1722456842536,6.07211,3255.1,3253.6,2.456]
[1722456842537,3.07255,3254.7,3253.6,2.456]
[1722456842883,3.07276,3254.4,3253.6,2.456]
[1722456843256,3.0,3254.6,3253.6,2.456]
[1722456843461,3.607252,3254.6,3253.6,2.456]
[1722456843655,3.607252,3254.6,3253.5,0.03]
[1722456843656,5.54402,3254.9,3253.5,0.03]
[1722456843983,3.07344,3253.7,3252.2,2.3527]
[1722456844188,3.07359,3253.6,3252.2,2.3527]
[1722456844378,6.07361,3253.5,3252.3,0.06148039]
[1722456844548,3.07381,3253.3,3252.2,2.3527]
[1722456844747,6.381281,3253.2,3252.2,2.3527]
[1722456844942,3.307381,3253.2,3252.2,2.3527]
[1722456845144,3.381271,3253.2,3252.2,2.3527]
[1722456845509,3.0,3253.1,3252.2,2.3527]
[1722456845650,0.307381,3253.2,3252.2,2.3527]
[1722456845874,0.307381,3253.2,3252.3,0.06148611]
[1722456846239,3.0,3253.4,3252.3,0.06148611]
[1722456846948,3.07351,3253.6,3252.3,0.06148611]
[1722456847153,3.0,3253.5,3252.2,2.58797]
[1722456847355,3.0,3253.5,3252.3,3.13617611]
[1722456847575,3.22503252,3254.0,3252.4,2.2691]
[1722456847576,3.07333,3253.8,3252.4,2.2691]
[1722456847776,3.07333,3253.8,3252.4,2.827011]
[1722456847777,3.607333,3253.7,3252.4,2.827011]
[1722456848083,3.07372,3253.4,3252.4,2.2691]
[1722456848283,3.0,3253.3,3252.4,2.2691]
[1722456848485,3.0,3253.5,3252.4,2.2691]
[1722456848792,6.07367,3253.5,3252.4,2.2691]
[1722456848945,6.14768,3253.3,3252.4,2.2691]
[1722456849149,3.614768,3253.2,3252.4,2.2691]
[1722456849355,3.0739,3253.2,3252.4,2.2691]
[1722456849660,3.07371,3253.4,3252.4,2.2691]
[1722456849852,0.607333,3253.7,3252.5,0.06148299]
[1722456849853,3.0,3253.3,3252.5,0.06148299]
[1722456850091,3.0,3253.6,3252.5,0.06148299]
[1722456850323,3.0,3253.6,3252.4,2.2691]
[1722456850464,0.6680763,3253.5,3252.4,2.2691]
[1722456851352,6.07353,3253.6,3252.4,2.2691]
[1722456851353,3.0,3253.6,3252.4,2.2691]
[1722456851558,3.0,3253.7,3252.5,0.06147769]
[1722456852268,0.15056089,3253.9,3252.5,0.06147769]
[1722456852269,3.07339,3253.8,3252.5,0.06147769]
[1722456852499,3.0,3253.7,3252.5,0.06147769]
[1722456852697,3.0,3253.7,3252.0,1.5]
[1722456852698,19.73,3252.5,3252.0,3.07496]
[1722456853019,20.337339,3253.6,3252.1,3.382426]
[1722456853210,19.79147776,3253.5,3252.1,0.307496]
[1722456853405,22.79147776,3253.5,3251.5,3.0755]
[1722456853609,1.58262696,3253.0,3251.4,3.07554]
[1722456853775,19.73,3252.9,3251.4,3.07554]
[1722456853963,19.73,3252.9,3251.2,1.5]
[1722456854165,3.06147776,3252.8,3251.0,3.07]
[1722456854366,3.06147776,3252.8,3251.1,3.38282]
[1722456854367,0.52588823,3252.7,3251.1,3.38282]
[1722456854868,0.46441047,3252.7,3251.1,0.307]
[1722456855064,3.0,3252.9,3251.6,3.0754]
[1722456855379,3.07463,3252.5,3251.1,0.62326919]
[1722456855617,19.79147776,3252.8,3251.1,0.307]
[1722456855618,0.06147776,3252.4,3251.1,0.307]
[1722456855939,3.0,3252.6,3251.2,2.4539]
[1722456856136,3.0,3252.7,3251.2,5.59110971]
[1722456856261,3.0,3252.7,3251.3,0.58981097]
[1722456856925,3.0,3252.7,3251.4,0.06148815]
[1722456857098,3.06147776,3252.7,3251.2,2.4539]
[1722456857305,6.13589776,3252.7,3251.2,2.4539]
[1722456857502,3.06147776,3252.7,3251.2,2.4539]
[1722456857732,3.0,3252.7,3251.3,0.06149425]
[1722456857928,2.580434,3252.6,3251.4,0.25153942]
[1722456858130,2.580434,3252.6,3251.5,0.06149369]
[1722456858131,3.0,3252.5,3251.5,0.06149369]
[1722456858426,19.73,3252.4,3251.2,2.4539]
[1722456858632,3.0,3252.3,3251.2,2.4539]
[1722456858830,19.73,3252.2,3251.2,2.4539]
[1722456859137,19.73,3252.2,3251.3,0.33758757]
[1722456859639,19.73,3252.2,3251.3,0.27609]
[1722456860024,19.73,3252.2,3251.2,2.4539]
[1722456860837,6.13641776,3252.1,3251.0,3.07]
[1722456861032,3.07513,3251.9,3251.0,3.07]
[1722456861336,3.0,3251.8,3251.0,3.07]
[1722456861538,3.06147776,3251.8,3251.0,3.07]
[1722456861837,3.0,3251.7,3251.0,3.61159]
[1722456862006,3.07508,3252.0,3251.0,3.07]
[1722456862208,3.07508,3252.0,3249.6,4.57723]
[1722456862209,16.66,3250.9,3249.7,2.3639]
[1722456862422,16.66,3250.8,3249.7,2.3639]
[1722456862811,16.66,3250.8,3249.8,0.06152525]
[1722456863144,16.66,3250.8,3249.8,3.07704]
[1722456863366,16.66,3250.8,3249.9,0.851808]
[1722456863646,3.0,3251.2,3249.7,2.3639]
[1722456863647,16.66,3250.7,3249.7,2.3639]
[1722456863857,16.66,3250.7,3250.2,3.07667]
[1722456863994,16.66,3250.7,3250.3,2.48961906]
[1722456864463,16.66,3250.7,3250.3,2.4281]
[1722456864754,16.66,3250.7,3250.4,0.24281]
[1722456865047,16.66,3250.6,3250.4,0.24281]
[1722456865334,16.66,3250.6,3249.8,2.74452601]
[1722456865556,16.66,3250.6,3249.8,2.4281]
[1722456866445,6.07588,3251.1,3249.4,2.4916]
[1722456866446,16.66,3250.5,3249.4,2.4916]
[1722456866646,8.41138,3251.1,3249.4,2.4916]
[1722456866647,16.66,3250.4,3249.5,0.24916]
[1722456866849,16.66,3250.4,3249.4,2.4916]
[1722456867033,16.66,3250.4,3249.5,0.06153421]
[1722456867238,16.66,3250.4,3249.4,2.4916]
[1722456868140,19.73656,3250.4,3249.4,2.4916]
[1722456868340,0.06147776,3250.3,3249.1,3.08]
[1722456868542,3.06147776,3250.3,3249.2,0.308]
[1722456868856,16.72147776,3250.2,3249.1,3.08]
[1722456869640,16.72147776,3250.2,3249.0,2.4778]
[1722456869641,6.07688,3250.1,3249.0,2.4778]
[1722456869817,0.06147776,3250.0,3249.0,2.4778]
[1722456870834,3.0,3250.1,3249.1,0.06154138]
[1722456870835,16.66,3249.9,3249.1,0.06154138]
[1722456871049,16.66,3249.9,3249.5,3.07731]
[1722456871248,16.66,3249.9,3249.6,3.384951]
[1722456871445,16.66,3249.9,3249.6,0.307731]
[1722456871631,16.66,3249.9,3249.5,3.07733]
[1722456871845,16.66,3249.9,3249.4,3.07749]
[1722456872049,16.66,3249.9,3249.7,3.07713]
[1722456872282,16.66,3249.9,3249.5,3.07734]
[1722456872445,16.66,3249.9,3249.6,3.13876249]
[1722456872783,16.66,3249.9,3249.8,6.15422]
[1722456873581,16.66,3250.9,3249.9,3.07694]
[1722456874335,16.66,3250.9,3249.8,3.07709]
[1722456874535,16.66,3250.9,3249.7,0.62160825]
[1722456874771,16.66,3250.9,3249.2,1.5]
[1722456874982,16.66,3250.9,3249.4,3.0774]
[1722456875272,3.06147776,3250.8,3249.4,3.07743]
[1722456875651,3.0,3250.8,3249.6,3.07729]
[1722456875859,3.0,3250.8,3249.7,3.0772]
[1722456876066,3.0,3250.8,3249.8,0.615449]
[1722456876560,3.0,3250.8,3249.5,3.07733]
[1722456876745,3.0,3250.8,3249.8,3.07711]
[1722456876965,3.0,3250.8,3249.8,2.3218]
[1722456877295,16.66,3250.9,3250.0,3.07692]
[1722456877595,16.66,3250.9,3250.1,0.06152066]
[1722456877782,16.66,3250.8,3250.2,0.31383607]
[1722456878304,16.66,3250.8,3250.3,0.06152038]
[1722456878859,16.66,3250.8,3250.1,3.07676]
[1722456879294,16.66,3250.8,3249.8,2.3218]
[1722456879484,16.66,3250.8,3250.2,3.07668]
[1722456879797,2.3973,3251.9,3250.7,3.07626]
[1722456879999,19.73,3251.8,3250.9,3.07601]
[1722456880201,19.73,3251.8,3251.1,3.07582]
[1722456880392,19.73,3251.8,3251.2,0.06150366]
[1722456880710,19.73,3252.3,3251.8,3.07514]
[1722456881004,19.73,3252.2,3251.9,0.06148957]
[1722456881163,19.73,3252.2,3251.8,0.307514]
[1722456881369,19.73,3252.2,3250.8,1.807626]
[1722456881565,2.3973,3253.3,3250.8,1.807626]
[1722456881566,19.73,3253.1,3250.8,1.807626]
[1722456881901,0.06147776,3253.1,3251.7,3.07531]
[1722456882203,0.06147776,3253.1,3251.5,3.0754]
[1722456882204,19.73,3253.0,3251.5,3.0754]
[1722456882375,19.73,3253.0,3250.8,1.807626]
[1722456882376,2.4813,3252.8,3250.8,1.807626]
[1722456882700,3.07447,3252.6,3250.8,3.383696]
[1722456883006,0.06147776,3252.5,3250.8,3.383696]
[1722456883202,0.06147776,3252.5,3250.9,3.07607]
[1722456883508,0.06147776,3252.5,3251.2,3.07573]
[1722456883674,3.0,3252.6,3251.2,3.07573]
[1722456884015,19.73,3252.5,3251.8,3.07515]
[1722456884308,19.73,3252.7,3251.6,3.0754]
[1722456884461,19.73,3252.7,3251.7,3.07531]
[1722456884803,19.73,3252.7,3251.5,3.07543]
[1722456885001,19.73,3252.7,3251.4,3.07558]
[1722456885176,2.22113,3252.6,3251.6,3.07539]
[1722456885519,19.73,3252.7,3251.6,3.07539]
[1722456885723,19.73,3252.7,3251.5,0.3383153]
[1722456886022,19.73,3252.7,3251.6,3.07539]
[1722456886507,19.73,3252.7,3251.5,0.3383153]
[1722456886716,19.73,3252.7,3251.7,3.07523]
[1722456886912,19.73,3252.7,3251.8,0.31367165]
[1722456887065,19.73,3252.7,3251.5,3.4137253]
[1722456887265,19.73,3252.7,3251.6,3.07538]
[1722456887791,19.73,3252.7,3251.5,0.3383153]
[1722456888297,19.73,3252.7,3251.5,3.4137953]
[1722456888608,19.73,3252.7,3251.5,0.3383153]
[1722456888804,2.22113,3252.6,3251.5,0.3383153]
[1722456889410,2.22113,3252.6,3251.5,3.4137853]
[1722456889825,2.22113,3252.6,3251.5,0.3383153]
[1722456890010,2.22113,3252.6,3251.5,3.4138053]
[1722456890801,2.22113,3252.6,3251.5,6.4892253]
[1722456890986,19.73,3252.7,3251.6,0.64892253]
[1722456891683,19.73,3252.7,3251.5,3.07542]
[1722456892276,19.73,3252.7,3251.6,3.07539]
[1722456893215,19.73,3252.7,3251.3,3.0756]